fUST/lending_fUST_20260504
["ID","MTS","AMOUNT","RATE_DAILY","PERIOD"]
[421546989,1777853443000,-500.0,0.00014699,2]
[421546987,1777853443000,-2622.36609843,0.00014552,2]
[421546988,1777853443000,-468.20976451,0.00014699,2]
[421546990,1777853443000,-500.0,0.00014699,2]
[421547006,1777853443000,-500.0,0.00014699,2]
[421546991,1777853443000,-500.0,0.00014699,2]
[421546998,1777853443000,-500.0,0.00014699,2]
[421547007,1777853443000,-500.0,0.00014699,2]
[421546999,1777853443000,-500.0,0.00014699,2]
[421547003,1777853443000,-500.0,0.00014699,2]
[421547000,1777853443000,-500.0,0.00014699,2]
[421547004,1777853443000,-158.01961113,0.00014699,2]
[421547005,1777853443000,-500.0,0.00014699,2]
[421547009,1777853443000,-500.0,0.00014699,2]
[421547011,1777853443000,-466.3933165,0.00014699,2]
[421547012,1777853443000,-11680.95058018,0.000147,2]
[421547008,1777853443000,-500.0,0.00014699,2]
[421547010,1777853443000,-500.0,0.00014699,2]
[421546997,1777853443000,-500.0,0.00014699,2]
[421547014,1777853446000,-13710.95755747,0.000147,2]
[421547015,1777853446000,-1025.76618042,0.000147,2]
[421547013,1777853446000,-5452.3136538,0.00014691,2]
[421547017,1777853446000,-3720.24751316,0.00014552,2]
[421547018,1777853446000,-56316.99884125,0.000147,2]
[421547016,1777853446000,-1142.3617184,0.000147,2]
[421547136,1777854395000,2594.95,0.00021918,120]
[421547207,1777854633000,-529.0,0.000143,3]
[421547221,1777854633000,-1957.856,0.00014515,2]
[421547223,1777854633000,-2150.738,0.00014515,2]
[421547208,1777854633000,-195.0,0.00014323,2]
[421547211,1777854633000,-1199.0,0.00014324,2]
[421547216,1777854633000,-17.63627937,0.00014325,2]
[421547224,1777854633000,-216.1498956,0.00014524,2]
[421547212,1777854633000,-155.95412952,0.00014325,2]
[421547225,1777854633000,-1788.94885692,0.00014524,2]
[421547226,1777854633000,-391.92824447,0.00014524,2]
[421547231,1777854633000,-2044.85449226,0.0001457,2]
[421547232,1777854633000,-271.087,0.00014599,2]
[421547214,1777854633000,-212.62648467,0.00014325,2]
[421547222,1777854633000,-644.79446245,0.00014515,2]
[421547194,1777854633000,-239.80224273,0.00011649,2]
[421547218,1777854633000,-154.03599555,0.00014325,2]
[421547191,1777854633000,-2128.35081786,0.00011533,2]
[421547192,1777854633000,-410.71337545,0.00011533,2]
[421547193,1777854633000,-152.91186577,0.00011533,2]
[421547196,1777854633000,-237.54989462,0.00012067,2]
[421547197,1777854633000,-210.06473495,0.00013011,2]
[421547195,1777854633000,-586.0,0.00011767,2]
[421547220,1777854633000,-205.3201709,0.00014325,2]
[421547235,1777854633000,-152.0,0.00014662,7]
[421547200,1777854633000,-89.65130137,0.00014067,2]
[421547198,1777854633000,-1000.0,0.00013699,2]
[421547202,1777854633000,-190.65757428,0.00014067,2]
[421547199,1777854633000,-1000.0,0.00013699,2]
[421547219,1777854633000,-155.7883361,0.00014325,2]
[421547217,1777854633000,-142.84943113,0.00014325,2]
[421547204,1777854633000,-300.0,0.00014299,2]
[421547228,1777854633000,-163.1275402,0.00014524,2]
[421547227,1777854633000,-863.23762001,0.00014524,2]
[421547234,1777854633000,-152.0,0.00014662,7]
[421547264,1777854633000,-1559.48124982,0.000148,2]
[421547263,1777854633000,-1107.74017432,0.000148,2]
[421547261,1777854633000,-2110.54766854,0.000148,2]
[421547233,1777854633000,-1000.0,0.000146,2]
[421547259,1777854633000,-594.10581983,0.000148,3]
[421547260,1777854633000,-1556.26037236,0.000148,2]
[421547254,1777854633000,-152.0,0.00014703,7]
[421547257,1777854633000,-196.21,0.00014727,2]
[421547258,1777854633000,-405.89418017,0.000148,3]
[421547253,1777854633000,-152.0,0.00014703,7]
[421547256,1777854633000,-73.31946695,0.00014727,2]
[421547255,1777854633000,-462.69708139,0.00014727,2]
[421547251,1777854633000,-1481.09798639,0.000147,2]
[421547252,1777854633000,-152.0,0.00014703,7]
[421547250,1777854633000,-2503.05585626,0.000147,2]
[421547262,1777854633000,-545.83712939,0.000148,2]
[421547239,1777854633000,-152.0,0.00014666,7]
[421547245,1777854633000,-152.0,0.00014671,7]
[421547229,1777854633000,-1880.3563528,0.00014524,2]
[421547237,1777854633000,-152.0,0.00014666,7]
[421547247,1777854633000,-152.0,0.00014699,7]
[421547249,1777854633000,-152.0,0.00014699,7]
[421547248,1777854633000,-152.0,0.00014699,7]
[421547236,1777854633000,-152.0,0.00014662,7]
[421547230,1777854633000,-456.159554,0.00014525,2]
[421547244,1777854633000,-152.0,0.00014671,7]
[421547242,1777854633000,-152.0,0.00014666,7]
[421547241,1777854633000,-152.0,0.00014666,7]
[421547238,1777854633000,-152.0,0.00014666,7]
[421547243,1777854633000,-152.0,0.00014666,7]
[421547240,1777854633000,-152.0,0.00014666,7]
[421547246,1777854633000,-152.0,0.00014671,7]
[421547285,1777854638000,-503.90259619,0.00014999,2]
[421547286,1777854638000,-503.90259619,0.00014999,2]
[421547277,1777854638000,-500.0,0.00014899,2]
[421547288,1777854638000,-503.90259619,0.00014999,2]
[421547289,1777854638000,-503.90259619,0.00014999,2]
[421547279,1777854638000,-216.83,0.0001493,2]
[421547281,1777854638000,-503.90259619,0.00014999,2]
[421547280,1777854638000,-156.73,0.00014999,2]
[421547278,1777854638000,-400.95660206,0.00014899,2]
[421547287,1777854638000,-503.90259619,0.00014999,2]
[421547283,1777854638000,-503.90259619,0.00014999,2]
[421547272,1777854638000,-1270.9645673,0.00014869,2]
[421547275,1777854638000,-500.0,0.00014899,2]
[421547273,1777854638000,-155.0,0.00014899,2]
[421547270,1777854638000,-1000.0,0.000148,5]
[421547269,1777854638000,-4124.19571535,0.000148,2]
[421547271,1777854638000,-1000.0,0.000148,6]
[421547274,1777854638000,-546.89104491,0.00014899,2]
[421547266,1777854638000,-1200.0,0.000148,2]
[421547267,1777854638000,-441.51001399,0.000148,2]
[421547268,1777854638000,-3404.05422925,0.000148,2]
[421547265,1777854638000,-575.8249803,0.000148,2]
[421547282,1777854638000,-503.90259619,0.00014999,2]
[421547276,1777854638000,-500.0,0.00014899,2]
[421547290,1777854638000,-503.90259619,0.00014999,2]
[421547293,1777854638000,-503.90259619,0.00014999,2]
[421547302,1777854638000,-520.6993494,0.00014999,2]
[421547292,1777854638000,-503.90259619,0.00014999,2]
[421547312,1777854638000,-151.0,0.00015,2]
[421547314,1777854638000,-151.0,0.00015,2]
[421547311,1777854638000,-593603.669424,0.00015,2]
[421547313,1777854638000,-151.0,0.00015,2]
[421547307,1777854638000,-520.6993494,0.00014999,2]
[421547309,1777854638000,-210.43346347,0.00014999,2]
[421547308,1777854638000,-520.6993494,0.00014999,2]
[421547310,1777854638000,-155582.70290211,0.00015,2]
[421547306,1777854638000,-520.6993494,0.00014999,2]
[421547315,1777854638000,-292.75039468,0.00015,2]
[421547304,1777854638000,-520.6993494,0.00014999,2]
[421547299,1777854638000,-503.90259619,0.00014999,2]
[421547305,1777854638000,-520.6993494,0.00014999,2]
[421547303,1777854638000,-520.6993494,0.00014999,2]
[421547291,1777854638000,-503.90259619,0.00014999,2]
[421547295,1777854638000,-503.90259619,0.00014999,2]
[421547298,1777854638000,-503.90259619,0.00014999,2]
[421547297,1777854638000,-503.90259619,0.00014999,2]
[421547296,1777854638000,-503.90259619,0.00014999,2]
[421547301,1777854638000,-520.6993494,0.00014999,2]
[421547300,1777854638000,-503.90259619,0.00014999,2]
[421547316,1777854638000,-155.0,0.00015005,2]
[421547294,1777854638000,-503.90259619,0.00014999,2]
[421547325,1777854639000,-278.72,0.00015313,2]
[421547326,1777854639000,-155.0,0.00015325,2]
[421547320,1777854639000,-155.0,0.00015218,2]
[421547328,1777854639000,-155.0,0.00015431,2]
[421547323,1777854639000,-456.2076372,0.00015275,2]
[421547319,1777854639000,-155.0,0.00015112,2]
[421547327,1777854639000,-456.2076372,0.00015347,2]
[421547322,1777854639000,-151.0,0.00015275,2]
[421547324,1777854639000,-3984.15384265,0.000153,2]
[421547318,1777854639000,-191.464418,0.00015068,2]
[421547330,1777854639000,-171.00616652,0.00015476,2]
[421547321,1777854639000,-200.0,0.00015247,2]
[421547331,1777854639000,-1100.0,0.00015476,2]
[421547317,1777854639000,-241.67627832,0.00015063,2]
[421547341,1777854639000,-160.0,0.00015757,2]
[421547332,1777854639000,-212.0,0.00015476,2]
[421547342,1777854639000,-856.68669562,0.000158,2]
[421547343,1777854639000,-155.0,0.00015857,2]
[421547337,1777854639000,-152.0,0.00015569,7]
[421547335,1777854639000,-152.0,0.00015565,7]
[421547340,1777854639000,-155.0,0.0001575,2]
[421547344,1777854639000,-16617.82337397,0.00015863,2]
[421547338,1777854639000,-155.0,0.00015644,2]
[421547333,1777854639000,-155.0,0.00015538,2]
[421547334,1777854639000,-152.0,0.0001556,7]
[421547339,1777854639000,-200.0,0.00015735,2]
[421547336,1777854639000,-152.0,0.00015569,7]
[421547329,1777854639000,-3762.0,0.00015476,2]
[421547345,1777854639000,-1876.77527499,0.00015863,2]
[421547350,1777854640000,-612.47728457,0.00015863,2]
[421547349,1777854640000,-152.0,0.00015588,7]
[421547374,1777854648000,-211.21740023,0.00014998,2]
[421547375,1777854648000,-152.0,0.00015588,7]
[421547376,1777854648000,-227.19271921,0.00015596,2]
[421547380,1777854648000,-1297.21331,0.00015863,2]
[421547379,1777854648000,-190.37744514,0.00015863,2]
[421547378,1777854648000,-152.0,0.00015603,7]
[421547377,1777854648000,-152.0,0.00015603,7]
[421547382,1777854649000,-9405.33331133,0.00015863,2]
[421547383,1777854649000,-650.0,0.00015863,2]
[421547384,1777854649000,-185.0,0.00015878,2]
[421547385,1777854649000,-442.0,0.00015878,2]
[421547388,1777854649000,-634.84057857,0.000159,2]
[421547386,1777854649000,-1523.3,0.0001589,2]
[421547389,1777854649000,-5324.11840818,0.000159,2]
[421547390,1777854649000,-155.0,0.00015963,2]
[421547391,1777854649000,-4793.7344462,0.00015999,2]
[421547387,1777854649000,-3349.31326408,0.000159,2]
[421547395,1777854659000,650.39999901,0.0002191,120]
[421547564,1777854943000,427.00230983,0.00021,120]
[421547590,1777855488000,10000.0,0.00021917,120]
[421547697,1777855832000,-527.68893863,0.00011847,2]
[421547698,1777855832000,-296.92009493,0.00011847,2]
[421547696,1777855832000,-1009.63662955,0.00011847,2]
[421547722,1777855841000,-1125.34589103,0.00011967,2]
[421547745,1777855843000,-549.10598094,0.00011967,2]
[421547746,1777855843000,-589.0,0.00011967,2]
[421547747,1777855843000,-227.53626062,0.00012396,2]
[421547750,1777855843000,-300.0,0.00014272,2]
[421547754,1777855843000,-500.0,0.00014299,2]
[421547748,1777855843000,-287.84706216,0.00013365,14]
[421547752,1777855843000,-5167.03907511,0.00014273,2]
[421547751,1777855843000,-2490.0961517,0.00014273,2]
[421547753,1777855843000,-500.0,0.00014299,2]
[421547749,1777855843000,-1000.0,0.00013699,2]
[421547762,1777855844000,-184.30996733,0.00014299,2]
[421547755,1777855844000,-534.9746593,0.00014299,2]
[421547756,1777855844000,-500.0,0.00014299,2]
[421547761,1777855844000,-500.0,0.00014299,2]
[421547760,1777855844000,-500.0,0.00014299,2]
[421547757,1777855844000,-500.0,0.00014299,2]
[421547759,1777855844000,-500.0,0.00014299,2]
[421547758,1777855844000,-500.0,0.00014299,2]
[421547787,1777855847000,-315.69003267,0.00014299,2]
[421547788,1777855847000,-500.0,0.00014299,2]
[421547789,1777855847000,-500.0,0.00014299,2]
[421547791,1777855847000,-500.0,0.00014299,2]
[421547793,1777855847000,-500.0,0.00014299,2]
[421547790,1777855847000,-500.0,0.00014299,2]
[421547792,1777855847000,-500.0,0.00014299,2]
[421547797,1777855847000,-500.0,0.00014299,2]
[421547801,1777855847000,-298.54639467,0.00014299,2]
[421547795,1777855847000,-324.32976068,0.00014299,2]
[421547803,1777855847000,-500.0,0.00014299,2]
[421547798,1777855847000,-500.0,0.00014299,2]
[421547802,1777855847000,-500.0,0.00014299,2]
[421547805,1777855847000,-976.10255623,0.000143,2]
[421547804,1777855847000,-500.0,0.00014299,2]
[421547794,1777855847000,-175.67023932,0.00014299,2]
[421547796,1777855847000,-500.0,0.00014299,2]
[421547799,1777855847000,-500.0,0.00014299,2]
[421547800,1777855847000,-500.0,0.00014299,2]
[421548884,1777857031000,-282.06515213,0.00012033,2]
[421548882,1777857031000,-387.78499078,0.00011994,2]
[421549073,1777857038000,-500.0,0.00013698,2]
[421549070,1777857038000,-500.0,0.00013698,2]
[421549069,1777857038000,-2018.05125654,0.00013568,2]
[421549068,1777857038000,-2018.05125656,0.00013062,2]
[421549072,1777857038000,-500.0,0.00013698,2]
[421549064,1777857038000,-604.4529592,0.00012999,2]
[421549067,1777857038000,-325501.0,0.00013,2]
[421549065,1777857038000,-604.4529592,0.00012999,2]
[421549066,1777857038000,-706.74499847,0.00012999,2]
[421549063,1777857038000,-604.4529592,0.00012999,2]
[421549075,1777857038000,-500.0,0.00013698,2]
[421549071,1777857038000,-500.0,0.00013698,2]
[421549074,1777857038000,-500.0,0.00013698,2]
[421549087,1777857038000,-655.8,0.00013698,2]
[421549078,1777857038000,-500.0,0.00013698,2]
[421549077,1777857038000,-500.0,0.00013698,2]
[421549080,1777857038000,-655.8,0.00013698,2]
[421549079,1777857038000,-549.79364885,0.00013698,2]
[421549082,1777857038000,-655.8,0.00013698,2]
[421549084,1777857038000,-655.8,0.00013698,2]
[421549083,1777857038000,-655.8,0.00013698,2]
[421549081,1777857038000,-655.8,0.00013698,2]
[421549085,1777857038000,-655.8,0.00013698,2]
[421549086,1777857038000,-655.8,0.00013698,2]
[421549061,1777857038000,-604.4529592,0.00012999,2]
[421549088,1777857038000,-655.8,0.00013698,2]
[421549089,1777857038000,-655.8,0.00013698,2]
[421549090,1777857038000,-655.8,0.00013698,2]
[421549076,1777857038000,-500.0,0.00013698,2]
[421549062,1777857038000,-604.4529592,0.00012999,2]
[421549049,1777857038000,-559.67866593,0.00012999,2]
[421549057,1777857038000,-559.67866593,0.00012999,2]
[421549025,1777857038000,-510.0,0.00012998,2]
[421549023,1777857038000,-300.0,0.00012998,2]
[421549018,1777857038000,-4717.93484787,0.00012033,2]
[421549022,1777857038000,-228.08460287,0.00012155,2]
[421549020,1777857038000,-590.0,0.00012033,2]
[421549027,1777857038000,-323.887,0.00012999,2]
[421549029,1777857038000,-158.66106678,0.00012999,2]
[421549030,1777857038000,-219.28426512,0.00012999,2]
[421549031,1777857038000,-500.0,0.00012999,2]
[421549033,1777857038000,-500.0,0.00012999,2]
[421549034,1777857038000,-500.0,0.00012999,2]
[421549042,1777857038000,-559.67866593,0.00012999,2]
[421549041,1777857038000,-559.67866593,0.00012999,2]
[421549043,1777857038000,-559.67866593,0.00012999,2]
[421549046,1777857038000,-559.67866593,0.00012999,2]
[421549036,1777857038000,-331.43089405,0.00012999,2]
[421549038,1777857038000,-559.67866593,0.00012999,2]
[421549039,1777857038000,-559.67866593,0.00012999,2]
[421549048,1777857038000,-559.67866593,0.00012999,2]
[421549047,1777857038000,-559.67866593,0.00012999,2]
[421549050,1777857038000,-559.67866593,0.00012999,2]
[421549052,1777857038000,-559.67866593,0.00012999,2]
[421549051,1777857038000,-559.67866593,0.00012999,2]
[421549053,1777857038000,-559.67866593,0.00012999,2]
[421549054,1777857038000,-559.67866593,0.00012999,2]
[421549055,1777857038000,-559.67866593,0.00012999,2]
[421549056,1777857038000,-559.67866593,0.00012999,2]
[421549058,1777857038000,-559.67866593,0.00012999,2]
[421549059,1777857038000,-604.4529592,0.00012999,2]
[421549060,1777857038000,-604.4529592,0.00012999,2]
[421549092,1777857038000,-655.8,0.00013698,2]
[421549093,1777857038000,-655.8,0.00013698,2]
[421549095,1777857038000,-655.8,0.00013698,2]
[421549125,1777857038000,-500.0,0.00014299,2]
[421549130,1777857038000,-500.0,0.00014299,2]
[421549129,1777857038000,-500.0,0.00014299,2]
[421549134,1777857038000,-500.0,0.00014299,2]
[421549132,1777857038000,-500.0,0.00014299,2]
[421549131,1777857038000,-500.0,0.00014299,2]
[421549133,1777857038000,-500.0,0.00014299,2]
[421549135,1777857038000,-500.0,0.00014299,2]
[421549136,1777857038000,-539.63266621,0.00014299,2]
[421549137,1777857038000,-500.0,0.00014299,2]
[421549139,1777857038000,-500.0,0.00014299,2]
[421549138,1777857038000,-500.0,0.00014299,2]
[421549140,1777857038000,-500.0,0.00014299,2]
[421549128,1777857038000,-500.0,0.00014299,2]
[421549141,1777857038000,-500.0,0.00014299,2]
[421549145,1777857038000,-151.0,0.000143,2]
[421549143,1777857038000,-1200.40934455,0.000143,2]
[421549147,1777857038000,-151.0,0.000143,2]
[421549149,1777857038000,-151.0,0.000143,2]
[421549144,1777857038000,-4629.19916486,0.000143,2]
[421549150,1777857038000,-151.0,0.000143,2]
[421549148,1777857038000,-151.0,0.000143,2]
[421549151,1777857038000,-151.0,0.000143,2]
[421549154,1777857038000,-873.36,0.00014398,2]
[421549152,1777857038000,-151.0,0.000143,2]
[421549153,1777857038000,-151.0,0.000143,2]
[421549155,1777857038000,-873.36,0.00014399,2]
[421549096,1777857038000,-655.8,0.00013698,2]
[421549142,1777857038000,-595.07937132,0.00014299,2]
[421549126,1777857038000,-500.0,0.00014299,2]
[421549146,1777857038000,-151.0,0.000143,2]
[421549123,1777857038000,-500.0,0.00014299,2]
[421549127,1777857038000,-500.0,0.00014299,2]
[421549097,1777857038000,-500.0,0.00013698,2]
[421549091,1777857038000,-655.8,0.00013698,2]
[421549094,1777857038000,-655.8,0.00013698,2]
[421549099,1777857038000,-1000.0,0.00013699,2]
[421549100,1777857038000,-500.0,0.00013972,2]
[421549098,1777857038000,-1000.0,0.00013699,2]
[421549103,1777857038000,-2018.05125654,0.00014075,2]
[421549111,1777857038000,-151.5,0.00014251,2]
[421549102,1777857038000,-655.8,0.00014015,2]
[421549105,1777857038000,-655.8,0.00014199,2]
[421549104,1777857038000,-269.13983139,0.00014155,2]
[421549106,1777857038000,-655.8,0.00014199,2]
[421549108,1777857038000,-655.8,0.00014199,2]
[421549101,1777857038000,-395.82901134,0.00014,2]
[421549107,1777857038000,-655.8,0.00014199,2]
[421549121,1777857038000,-500.0,0.00014299,2]
[421549109,1777857038000,-655.8,0.00014199,2]
[421549120,1777857038000,-500.0,0.00014299,2]
[421549122,1777857038000,-500.0,0.00014299,2]
[421549124,1777857038000,-500.0,0.00014299,2]
[421549118,1777857038000,-500.0,0.00014298,2]
[421549117,1777857038000,-500.0,0.00014298,2]
[421549119,1777857038000,-500.0,0.00014299,2]
[421549116,1777857038000,-300.0,0.00014255,2]
[421549115,1777857038000,-287.0,0.00014251,2]
[421549112,1777857038000,-198.5,0.00014251,2]
[421549113,1777857038000,-151.5,0.00014251,2]
[421549114,1777857038000,-151.5,0.00014251,2]
[421549110,1777857038000,-656.02,0.00014199,2]
[421549181,1777857039000,-537.6845,0.00014692,2]
[421549178,1777857039000,-2018.05125654,0.00014581,2]
[421549175,1777857039000,-873.36,0.00014399,2]
[421549179,1777857039000,-162.380719,0.00014692,2]
[421549180,1777857039000,-162.380719,0.00014692,2]
[421549182,1777857039000,-445.202766,0.00014692,2]
[421549173,1777857039000,-873.36,0.00014399,2]
[421549183,1777857039000,-151.0,0.00014692,2]
[421549187,1777857039000,-151.0,0.00014692,2]
[421549185,1777857039000,-169.61959066,0.00014692,2]
[421549189,1777857039000,-152.0,0.00014742,7]
[421549188,1777857039000,-152.0,0.00014742,7]
[421549193,1777857039000,-578.20924308,0.00014802,2]
[421549186,1777857039000,-2150.738,0.00014692,2]
[421549176,1777857039000,-873.36,0.00014399,2]
[421549191,1777857039000,-216.1498956,0.00014768,2]
[421549184,1777857039000,-537.6845,0.00014692,2]
[421549174,1777857039000,-873.36,0.00014399,2]
[421549156,1777857039000,-873.36,0.00014399,2]
[421549177,1777857039000,-873.48594563,0.00014399,2]
[421549192,1777857039000,-7158.6443195,0.00014768,2]
[421549157,1777857039000,-873.36,0.00014399,2]
[421549158,1777857039000,-873.36,0.00014399,2]
[421549159,1777857039000,-873.36,0.00014399,2]
[421549161,1777857039000,-873.36,0.00014399,2]
[421549162,1777857039000,-873.36,0.00014399,2]
[421549160,1777857039000,-873.36,0.00014399,2]
[421549172,1777857039000,-873.36,0.00014399,2]
[421549164,1777857039000,-873.36,0.00014399,2]
[421549165,1777857039000,-873.36,0.00014399,2]
[421549166,1777857039000,-873.36,0.00014399,2]
[421549167,1777857039000,-873.36,0.00014399,2]
[421549168,1777857039000,-873.36,0.00014399,2]
[421549171,1777857039000,-873.36,0.00014399,2]
[421549170,1777857039000,-873.36,0.00014399,2]
[421549169,1777857039000,-873.36,0.00014399,2]
[421549163,1777857039000,-873.36,0.00014399,2]
[421549190,1777857039000,-557.5788265,0.00014747,2]
[421549204,1777857039000,-191.464418,0.00015068,2]
[421549194,1777857039000,-599.60298507,0.00014857,2]
[421549216,1777857039000,-830.791353,0.00015715,2]
[421549211,1777857039000,-151.0,0.0001524,2]
[421549218,1777857039000,-442.0,0.0001584,2]
[421549220,1777857039000,-500.0,0.000159,2]
[421549222,1777857039000,-115632.38951633,0.00015999,2]
[421549221,1777857039000,-4988.13442461,0.000159,2]
[421549223,1777857039000,-151.0,0.00015999,2]
[421549224,1777857039000,-155.0,0.00015999,2]
[421549225,1777857039000,-151.0,0.00015999,2]
[421549227,1777857039000,-151.0,0.00015999,2]
[421549231,1777857039000,-120725.088642,0.00016,2]
[421549228,1777857039000,-151.0,0.00015999,2]
[421549226,1777857039000,-151.0,0.00015999,2]
[421549229,1777857039000,-151.0,0.00015999,2]
[421549230,1777857039000,-151.68053369,0.00015999,2]
[421549214,1777857039000,-773.2413689,0.00015242,2]
[421549213,1777857039000,-2230.315306,0.0001524,2]
[421549212,1777857039000,-557.5788265,0.0001524,2]
[421549232,1777857039000,-222368.49408598,0.00016,2]
[421549195,1777857039000,-621.78829552,0.00014912,2]
[421549197,1777857039000,-151.0,0.00014948,2]
[421549199,1777857039000,-644.79446246,0.00014967,2]
[421549198,1777857039000,-277.49751189,0.00014948,2]
[421549205,1777857039000,-693.3919763,0.00015077,2]
[421549201,1777857039000,-300.0,0.00015,2]
[421549202,1777857039000,-151.0,0.0001502,2]
[421549219,1777857039000,-185.0,0.0001584,2]
[421549196,1777857039000,-151.0,0.00014948,2]
[421549206,1777857039000,-2018.05125654,0.00015087,2]
[421549203,1777857039000,-668.65185757,0.00015022,2]
[421549209,1777857039000,-168.3888056,0.0001524,2]
[421549207,1777857039000,-719.04747942,0.00015132,2]
[421549208,1777857039000,-745.65223616,0.00015187,2]
[421549210,1777857039000,-461.67526834,0.0001524,2]
[421549217,1777857039000,-796.0,0.000158,2]
[421549215,1777857039000,-160.0,0.00015499,2]
[421549200,1777857039000,-849.5,0.00015,2]
[421549236,1777857040000,-596273.08695552,0.00016,2]
[421549237,1777857040000,-748.50008482,0.00016,2]
[421549268,1777857046000,-9793.38944776,0.00016,2]
[421549269,1777857046000,-2645.43678463,0.00016,2]
[421549380,1777858238000,-943.6529815,0.00013,2]
[421549355,1777858238000,-689.83129044,0.00012694,2]
[421549361,1777858238000,-11391.2332857,0.00013,2]
[421549359,1777858238000,-300.0,0.00012999,2]
[421549357,1777858238000,-229.50309868,0.00012835,2]
[421549421,1777858246000,-21237.42980715,0.00013,2]
[421549430,1777858471000,500.0,0.00021918,120]
[421549565,1777859432000,-5000.0,0.00011123,2]
[421549571,1777859432000,-300.0,0.00011348,2]
[421549567,1777859432000,-2783.65470769,0.00011235,2]
[421549568,1777859432000,-578.0,0.00011235,2]
[421549572,1777859432000,-1200.0,0.00011348,2]
[421549570,1777859432000,-300.0,0.00011348,2]
[421549566,1777859432000,-186.0,0.00011235,2]
[421549573,1777859432000,-300.0,0.00011678,2]
[421549574,1777859432000,-287.87470693,0.00012999,2]
[421549578,1777859432000,-305.09082963,0.00013,2]
[421549575,1777859432000,-6117.97071114,0.00013,2]
[421549576,1777859432000,-3961.05656931,0.00013,2]
[421549577,1777859432000,-305.31453185,0.00013,2]
[421549569,1777859432000,-241.25241564,0.00011292,2]
[421549604,1777859441000,-887.59885502,0.00013,2]
[421549632,1777859443000,-2653.8385751,0.0001287,2]
[421549635,1777859443000,-14535.6712471,0.00013,2]
[421549634,1777859443000,-1931.90302566,0.0001287,2]
[421549636,1777859443000,-4042.89343697,0.00013,2]
[421549633,1777859443000,-414.25839924,0.0001287,2]
[421549656,1777859446000,-531.4032562,0.00014453,2]
[421549652,1777859446000,-1000.0,0.00013699,2]
[421549650,1777859446000,-3583.3361514,0.0001353,2]
[421549654,1777859446000,-151.55638688,0.00014,2]
[421549655,1777859446000,-3583.3361514,0.00014297,2]
[421549647,1777859446000,-2404.99956709,0.00013,2]
[421549658,1777859446000,-151.5,0.00014524,2]
[421549660,1777859446000,-157.1357604,0.00014524,2]
[421549657,1777859446000,-224.57971303,0.00014524,2]
[421549659,1777859446000,-153.36886809,0.00014524,2]
[421549648,1777859446000,-28277.83387974,0.00013,2]
[421549649,1777859446000,-284.67785046,0.00013292,2]
[421549653,1777859446000,-1000.0,0.00013699,2]
[421549651,1777859446000,-242.56452057,0.00013698,2]
[421549663,1777859446000,-573.50030836,0.00014799,2]
[421549675,1777859446000,-573.50030836,0.00014799,2]
[421549674,1777859446000,-573.50030836,0.00014799,2]
[421549673,1777859446000,-573.50030836,0.00014799,2]
[421549672,1777859446000,-573.50030836,0.00014799,2]
[421549667,1777859446000,-573.50030836,0.00014799,2]
[421549671,1777859446000,-573.50030836,0.00014799,2]
[421549669,1777859446000,-573.50030836,0.00014799,2]
[421549668,1777859446000,-573.50030836,0.00014799,2]
[421549670,1777859446000,-573.50030836,0.00014799,2]
[421549666,1777859446000,-573.50030836,0.00014799,2]
[421549665,1777859446000,-573.50030836,0.00014799,2]
[421549664,1777859446000,-573.50030836,0.00014799,2]
[421549662,1777859446000,-573.50030836,0.00014799,2]